Cogmind - Beta 13 @@@ ROGUE MODE // 2024.05.19 @ 09:01:11 Player: ILikeVoltron Result: Self-destructed Performance ------------- Evolutions (1) 500 Regions Visited (3) 600 Robots Destroyed (39) 195 Value Destroyed (925) 925 Prototype IDs (4) 80 Alien Tech Used (0) 0 Bonus (19) 19 TOTAL SCORE: 2319 Bonus ------- High Alert Combat Kills 19 Cogmind --------- Core Integrity 270/400 Matter 284/300 Energy 280/280 System Corruption 0% Temperature Cool (0) Movement Walking (190) Ox1 Location -9/Mines Parts ------- > --- POWER (1) -------- Heavy Ion Engine > --- PROPULSION (3) --- Light Treads Aluminum Leg Improved Aluminum Leg > --- UTILITY (3) ------ Medium Storage Unit Sensor Array Signal Interpreter > --- WEAPON (2) ------- Heavy Assault Rifle Heavy Assault Rifle > --- INVENTORY (10) --- Huge Storage Unit Medium Matter Pod (100) Large Matter Pod (150) Structural Scanner Visual Processing Unit Terrain Scanner Advanced Beam Cannon Advanced Beam Cannon Grenade Launcher Mace Peak State ------------ > --- POWER ------------ Heavy Ion Engine > --- PROPULSION ------- Aluminum Leg Aluminum Leg Aluminum Leg > --- UTILITY ---------- Medium Storage Unit Sensor Array Signal Interpreter > --- WEAPON ----------- Advanced Beam Cannon Heavy Assault Rifle > --- INVENTORY -------- Aluminum Leg Huge Storage Unit High-capacity Battery Large Matter Pod Structural Scanner Visual Processing Unit Terrain Scanner Particle Cannon Grenade Launcher Mace [Rating: 15] Favorites ----------- Power Ion Engine Engine Ion Engine Propulsion Aluminum Leg Treads Light Treads Leg Aluminum Leg Utility Medium Storage Unit Device Terrain Scanner Storage Medium Storage Unit Processor Signal Interpreter Weapon Assault Rifle Energy Gun EM Pulse Gun Energy Cannon Beam Cannon Ballistic Gun Assault Rifle Impact Weapon Flail Build | -11 -10 -9 -9 ------- Run | Yrd Mat Mat Min Slots Evolved 2 | . . 2 . Power . | . . . . Propulsion 1 | . . 1 . Utility 1 | . . 1 . Weapon . | . . . . Parts Attached 37 | . 15 19 3 Power 3 | . 1 2 . Engine 3 | . 1 2 . Core . | . . . . Reactor . | . . . . Propulsion 12 | . 3 8 1 Treads 1 | . . . 1 Leg 11 | . 3 8 . Wheel . | . . . . Hover . | . . . . Flight . | . . . . Utility 13 | . 7 4 2 Device 6 | . 5 1 . Storage 5 | . 2 1 2 Processor 2 | . . 2 . Hackware . | . . . . Protection . | . . . . Artifact . | . . . . Weapon 9 | . 4 5 . Energy Gun . | . . . . Energy Cannon 3 | . . 3 . Ballistic Gun 5 | . 3 2 . Ballistic Cannon . | . . . . Launcher . | . . . . Special Weapon . | . . . . Impact Weapon 1 | . 1 . . Slashing Weapon . | . . . . Piercing Weapon . | . . . . Special Melee Weapon . | . . . . Unidentified Prototypes 2 | . . 2 . Parts Lost 7 | . 2 4 1 Power 1 | . 1 . . Propulsion 5 | . . 4 1 Utility . | . . . . Weapon 1 | . 1 . . Highest Loss Streak 2 | . 1 2 1 To Critical Strikes . | . . . . Average Slot Usage (%) 96 | . 96 97 95 Engine 12 | . 13 11 11 Leg 28 | . 28 30 26 Device 11 | . 11 11 11 Storage 12 | . 14 11 11 Processor 3 | . . 11 11 Energy Cannon 1 | . . 6 . Ballistic Gun 21 | . 24 14 22 Impact Weapon 1 | . 1 1 . Naked Turns . | . . . . Heaviest Build 26 | 14 22 26 25 Greatest Support 33 | 20 20 33 33 Greatest Overweight (x) 1 | . 1 1 1 Average Overweight (x) . | . . . . Largest Inventory Capacity 25 | . 10 10 25 Average Capacity 9 | . 9 10 10 Most Carried 10 | . 10 10 10 Average Carried 9 | . 8 9 10 Final Capacity 10 | 8 10 10 10 Final Carried 10 | 6 10 10 10 Class Distribution -------------------- 65% | Mutant 34% | Scavenger-Mutant Dominant Class ---------------- Mutant | -10/Materials Scavenger-Mutant | -9/Materials Scavenger-Mutant | -9/Mines Resources | -11 -10 -9 -9 ----------- Run | Yrd Mat Mat Min Matter Collected 1425 | 200 565 604 56 Remotely . | . . . . Salvage Created 1226 | . 541 635 50 Parts 79 | . 37 36 6 Haulers Intercepted 2 | . 1 1 . Recyclers Shooed 1 | . 1 . . Parts Field Recycled . | . . . . Retrieved Matter . | . . . . Parts Self-Destructed . | . . . . Prevented . | . . . . Kills | -11 -10 -9 -9 ------- Run | Yrd Mat Mat Min Combat Hostiles Destroyed 30 | . 15 14 1 Melee 1 | . 1 . . Guns 23 | . 13 9 1 Cannons 5 | . . 5 . Classes Destroyed 9 | . 6 3 . Worker 2 | . 1 1 . Builder 2 | . 2 . . Hauler 2 | . 1 1 . Operator 2 | . 1 1 . Watcher 1 | . . 1 . Swarmer 9 | . 6 3 . Grunt 16 | . 9 7 . Duelist 1 | . . 1 . Sentry 4 | . . 3 1 Best Kill Streak 4 | . 3 4 1 Combat Bots Only 3 | . 3 3 1 Max Kills in Single Turn 2 | . 2 1 1 Gunslinging 1 | . 1 . . Exploded . | . . . . Melee 1 | . 1 . . Uniques/NPCs Destroyed . | . . . . Combat | -11 -10 -9 -9 -------- Run | Yrd Mat Mat Min Hostile Shots Fired 208 | . 112 78 18 Missed 62 | . 40 20 2 Damage Taken 1662 | . 764 671 227 Core 242 | . 112 115 15 Absorbed by Shields . | . . . . Core Remaining (%) 77 | 100 55 . . Volleys Fired 132 | . 75 50 7 Largest 2 | . 2 2 2 Hottest 91 | . 60 91 46 Shots Fired 260 | . 149 97 14 Gun 234 | . 149 71 14 Cannon 26 | . . 26 . Launcher . | . . . . Special . | . . . . Kinetic 232 | . 147 71 14 Thermal 26 | . . 26 . Explosive . | . . . . Electromagnetic 2 | . 2 . . Robot Hit Streak 12 | . 12 7 4 Robot Miss Streak 4 | . 4 3 3 Penetration Max . | . . . . Secondary Targets 2 | . 1 1 . Max Gunslinging Chain 1 | . 1 1 . Shots Hit Robots 168 | . 97 63 8 Core Hits 54 | . 28 23 3 Critical Kills 4 | . 2 2 . Critical Parts Destroyed 2 | . 2 . . Critical Strikes 6 | . 4 2 . Destroy 4 | . 2 2 . Smash 2 | . 2 . . Melee Attacks 10 | . 5 5 . Impact 10 | . 5 5 . Slashing . | . . . . Piercing . | . . . . Sneak Attacks 1 | . . 1 . Combat Hostiles . | . . . . Follow-up Attacks . | . . . . Damage Inflicted 2339 | . 1185 1035 119 Guns 1834 | . 1108 607 119 Cannons 307 | . . 307 . Explosions 33 | . 33 . . Melee 165 | . 44 121 . Ramming . | . . . . Kinetic 1819 | . 1093 607 119 Thermal 340 | . 33 307 . Explosive . | . . . . Electromagnetic 15 | . 15 . . Impact 165 | . 44 121 . Slashing . | . . . . Piercing . | . . . . Highest Corruption . | . . . . Average Corruption . | . . . . Corruption Purged . | . . . . Corruption Blocked . | . . . . Overload Shots . | . . . . Overflow Damage 84 | . 44 40 . Projectiles . | . . . . Explosions . | . . . . Melee 84 | . 44 40 . Knockbacks 1 | . . 1 . Impact 1 | . . 1 . Kinetic . | . . . . Secondary . | . . . . Self-Inflicted Damage 35 | . 35 . . Shots 1 | . 1 . . Rammed . | . . . . Targets Rammed . | . . . . Kicked . | . . . . Crushed . | . . . . Highest Temperature 114 | . 30 114 20 Average Temperature 29 | . 8 38 5 Received Heat Transfer 660 | . 318 234 108 Siege Activations . | . . . . Robots Corrupted . | . . . . Combat Hostiles . | . . . . Parts Fried 2 | . 2 . . Impact Corruptions 4 | . 2 2 . Robots Melted . | . . . . Combat Hostiles . | . . . . Parts Melted . | . . . . Heat Transferred 629 | . . 629 . Parts Sabotaged . | . . . . Parts Stolen . | . . . . Parts Stripped . | . . . . Power Chain Reactions 1 | . 1 . . Alert | -11 -10 -9 -9 ------- Run | Yrd Mat Mat Min Peak Influence 443 | . 178 443 146 Initial 121 | . . 74 121 Average 131 | . 83 236 136 Maximum Alert Level 2 | . . 2 . Low Security (%) 79 | . 100 31 100 Level 1 19 | . . 63 . Level 2 1 | . . 4 . Level 3 . | . . . . Level 4 . | . . . . Level 5 . | . . . . High Security . | . . . . Max Security . | . . . . Squads Dispatched 6 | . 4 2 . Investigation 3 | . 3 . . Extermination . | . . . . Reinforcement 3 | . 1 2 . Assault . | . . . . Garrison . | . . . . Intercept . | . . . . Searches Triggered . | . . . . Construction Impeded . | . . . . Haulers Reinforced . | . . . . Active Scanning Responses . | . . . . Cargo Convoy Interrupts . | . . . . Stealth | -11 -10 -9 -9 --------- Run | Yrd Mat Mat Min Distress Signals 2 | . . 2 . Communications Jammed . | . . . . Distress Signals . | . . . . Times Spotted 45 | . 24 19 2 Peak Tracking Total 4 | . 4 4 2 Tactical Retreats 2 | . 2 . . Traps | -11 -10 -9 -9 ------- Run | Yrd Mat Mat Min Traps Triggered 3 | . 3 . . Indirectly . | . . . . Trap Hack Attempts . | . . . . Triggered . | . . . . Disarmed . | . . . . Reprogrammed . | . . . . Reused . | . . . . Traps Extracted . | . . . . Installed . | . . . . Triggered . | . . . . Machines | -11 -10 -9 -9 ---------- Run | Yrd Mat Mat Min Machines Disabled 1 | . . . 1 Max in Single Turn 1 | . . . 1 Machines Repaired . | . . . . Machines Dismantled . | . . . . Machines Sabotaged . | . . . . Overloaded Fab Kills . | . . . . Hacking | -11 -10 -9 -9 --------- Run | Yrd Mat Mat Min Machines Accessed 8 | . 6 2 . Terminals 8 | . 6 2 . Fabricators . | . . . . Repair Stations . | . . . . Recycling Units . | . . . . Scanalyzers . | . . . . Garrison Access . | . . . . Total Hacks 13 | . 11 2 . Successful 6 | . 5 1 . Failed 7 | . 6 1 . Catastrophic 6 | . 5 1 . Database Lockouts . | . . . . Manual 2 | . 2 . . Terminals 13 | . 11 2 . Fabricators . | . . . . Repair Stations . | . . . . Recycling Units . | . . . . Scanalyzers . | . . . . Garrison Access . | . . . . Terminal Hacks 6 | . 5 1 . Prototype ID Bank 1 | . . 1 . Emergency Access Points 1 | . 1 . . Alert Level 1 | . 1 . . Dispatch Records 1 | . 1 . . Transport Status 1 | . 1 . . Hauler Manifests 1 | . 1 . . Fabricator Hacks . | . . . . Repair Station Hacks . | . . . . Recycling Unit Hacks . | . . . . Scanalyzer . | . . . . Garrison Access Hacks . | . . . . Unauthorized Hacks . | . . . . Terminals . | . . . . Fabricators . | . . . . Repair Stations . | . . . . Recycling Units . | . . . . Scanalyzers . | . . . . Garrison Access . | . . . . Data Cores Recovered 1 | . 1 . . Used . | . . . . Hacking Detections 4 | . 2 2 . Full Trace Events 1 | . 1 . . Feedback Events . | . . . . Feedback Blocked . | . . . . Robot Schematics Acquired . | . . . . Robots Built . | . . . . Authchips . | . . . . Time . | . . . . Total Robot Build Rating . | . . . . Part Schematics Acquired . | . . . . Parts Built . | . . . . Authchips . | . . . . Time . | . . . . Total Part Build Rating . | . . . . Parts Repaired . | . . . . Time . | . . . . Parts Recycled . | . . . . Recycled Matter . | . . . . Retrieved Matter . | . . . . Retrieved Components . | . . . . Parts Scanalyzed . | . . . . Part Schematics Acquired . | . . . . Parts Damaged . | . . . . Bothacking | -11 -10 -9 -9 ------------ Run | Yrd Mat Mat Min Used RIF Installer . | . . . . Robots Hacked . | . . . . Non-combat . | . . . . Combat . | . . . . Robot Hacks Applied . | . . . . Relay Couplers Released . | . . . . Fabnet Peak Effective % . | . . . . Robots Rewired . | . . . . Allies Hacked . | . . . . Hacks Repelled . | . . . . Allies | -11 -10 -9 -9 -------- Run | Yrd Mat Mat Min Total Allies . | . . . . Largest Group . | . . . . Highest-Rated Group . | . . . . Highest-Rated Ally . | . . . . Total Orders . | . . . . Ally Attacks . | . . . . Total Damage . | . . . . Kills . | . . . . Allies Corrupted . | . . . . Allies Melted . | . . . . Intel | -11 -10 -9 -9 ------- Run | Yrd Mat Mat Min Robot Analysis Total . | . . . . Derelict Logs Recovered . | . . . . Drone Launches . | . . . . Drone Recoveries . | . . . . Exploration | -11 -10 -9 -9 ------------- Run | Yrd Mat Mat Min Turns Passed 1583 | . 1050 486 47 Spaces Moved 879 | 1 636 228 14 Core . | . . . . Treads . | . . . . Legs 879 | 1 636 228 14 Wheels . | . . . . Hover . | . . . . Flight . | . . . . Fastest Speed 120 | 120 120 120 120 Average Speed 120 | 120 120 120 150 Slowest Speed 190 | 120 190 190 190 Overloaded Moves . | . . . . Propulsion Burnouts . | . . . . Robots Hopped . | . . . . Cave-ins Triggered . | . . . . Exploration Rate (%) 29 | 1 90 23 4 Regions Visited 3 Branch Regions 1 Pre-discovered Areas . | . . . . Known Exits Taken 1 | . . 1 . Unknown Exits Taken 2 | 1 1 . . Scrap Searched . | . . . . Spaces Dug 1 | . 1 . . Terrain Destroyed 7 | . 7 . . Melee 1 | . 1 . . Projectile . | . . . . AOE 6 | . 6 . . Terrain Rammed . | . . . . Walls Destroyed . | . . . . Machines Disabled . | . . . . Actions | -11 -10 -9 -9 --------- Run | Yrd Mat Mat Min Total 1141 | . 775 342 24 Wait 31 | . 13 18 . Move 876 | . 635 227 14 Hop . | . . . . Pick Up 23 | . 15 8 . Fast Attach 11 | . 3 7 1 Attach 6 | . 3 3 . Detach 1 | . . 1 . Swap 20 | . 9 9 2 Drop 31 | . 17 14 . Fire 132 | . 75 50 7 Melee 10 | . 5 5 . Ram . | . . . . Kick . | . . . . Crush . | . . . . Escape Stasis . | . . . . Rewire . | . . . . Trap . | . . . . Miscellaneous . | . . . . Route ------- -11/Scrapyard -10/Materials (discovered 3 exits: *Mat x2 / [*Min]) -9/Materials -9/Mines History --------- Turn | Location | Event 1 | -11/Scrapyard | Discovered new exit (range 0) 1 | -11/Scrapyard | Entered Materials 69 | -10/Materials | Discovered new exit (range 9) 306 | -10/Materials | Build established: Mutant 465 | -10/Materials | Discovered new exit (range 16) 1029 | -10/Materials | Discovered new exit (range 4) 1051 | -10/Materials | Entered another Materials area 1051 | -9/Materials | Evolved 2 slots: Propulsion x1, Utility x1 1409 | -9/Materials | Discovered new exit (range 15) 1496 | -9/Materials | Build established: Scavenger-Mutant 1536 | -9/Materials | Identified exit to Mines 1537 | -9/Materials | Entered Mines 1538 | -9/Mines | Assembled infested the area 1584 | -9/Mines | Self-destructed Last Messages --------------- 01513_ Acquired Aluminum Leg. 01515_ Acquired 10 matter. 01520_ K-01 Serf collects debris. 01525_ Acquired 1 matter. 01536_ EXIT=IDENTIFIED: MINES LOCATION=MINES GOAL=ESCAPE Something is scanning the area. 01538_ ALERT: Infestation in the mines, dispatching Demolisher response squad. 01542_ Critical hit (Burn: +37). 01546_ Y-45 Defender destroyed. 01548_ Acquired 11 matter. 01549_ Machine disabled. 01549_ Critical hit (Burn: +37). 01550_ Acquired 6 matter. 01558_ Aluminum Leg destroyed. 01567_ Y-45 Defender destroyed. 01574_ Acquired Lgt. Treads. 01575_ Acquired 35 matter. 01582_ Acquired 4 matter. Map ----- +----------------------------------------------------+ | | | | | | | | | ?????????????????????????????????????????????????? | | ?????????????????????????????????????????????????? | | ?????????????????????????????????????????????????? | | ?????????????????????????????????????????????????? | | ?????????????????????????????????????????????????? | | ?????????????????????????????????????????????????? | | ?????????????????????????????????????????????????? | | ?????????????????????????????????????????????????? | | ?????????????????????????????????????????????????? | | ?????????????????????????????????????????????????? | | ?????????????????????????????????????????????????? | | ?????????????????????????????????????????????????? | | ?????????????????????????????????????????????????? | | ?????????????????????????????????????????????????? | | ?????????????????????????????????????????????????? | | ?????????????????????????????????????????????????? | | ??????????????????????????#####??????????????????? | | ??????????????????????##### ##?????????????????? | | ?????????????????????##![## #?????????????????? | | ?????????????????????#""!%# #?????????????????? | | ?????????????????????#!! !/ ##????????????????? | | ?????????????????????#!!*@/! ##???????????????? | | ?????????????????????#"" # #???????????????? | | ?????????????????????##" ## #???????????????? | | ??????????????????????####### #???????????????? | | ????????????????????????????## ##???????????????? | | ?????????????????????????????## #????????????????? | | ??????????????????????????????# #????????????????? | | ??????????????????????????????# #????????????????? | | ??????????????????????????????# #????????????????? | | ?????????????????????????????? ????????????????? | | ?????????????????????????????? ##????????????????? | | ?????????????????????????????? ??????????????????? | | ????????????????????????????x? ??????????????????? | | ??????????????????????????????#??????????????????? | | ?????????????????????????????????????????????????? | | ?????????????????????????????????????????????????? | | ?????????????????????????????????????????????????? | | ?????????????????????????????????????????????????? | | ?????????????????????????????????????????????????? | | ?????????????????????????????????????????????????? | | ?????????????????????????????????????????????????? | | ?????????????????????????????????????????????????? | | ?????????????????????????????????????????????????? | | ?????????????????????????????????????????????????? | | ?????????????????????????????????????????????????? | +----------------------------------------------------+ Best States ------------- Heat Dissipation 35 Energy Generation 14 Energy Capacity 280 Matter Stores 300 Matter Capacity 300 Sight Range 18 Robot Scan Range 14 Terrain Scan Range 14 Terrain Scan Density 10 Evasion (%) 55 Item Schematics ----------------- None Robot Schematics ------------------ None Fabricated ------------ Nothing Alien Tech Used ----------------- None Achievements -------------- None Challenges ------------ None Game ------ Seed MinesnifferDefenseCutter Manual? 0 Play Time 00:23:37 Cumulative 121.9 hours Start 2024.04.25 @ 19:54:07 End 2024.05.19 @ 09:01:11 Sessions 9 Manual Loads 0 Difficulty Rogue Special Mode None Game No. 198 Rogue 194 Adventurer 0 Explorer 4 Win Type - Total 0 Types 0/0/0/0/0/0/0/0/0 Lore% 26 Gallery% 43 Achievement% 33 Wizard Run 0 Options --------- Layout 1 ASCII 0 Keyboard 1 Movement Arrows Keybinds 0 Fullscreen 2 Font 32/SmallcapsGlow Map View 130x35 Zoom Use 0% Tactical HUD 1 Map Filters NONE Filters NONE Steam 1 RUN: 7f6f59bb-a47b-4e3e-ba8d-74763e892554